[Event "*** MasterClass Titled Tuesday Blitz"]
[Site "Chess.com"]
[Date "2017.08.01"]
[Round "3"]
[White "ZoltanChef"]
[Black "peteseeger"]
[Result "0-1"]
[WhiteElo "2105"]
[BlackElo "2105"]
[TimeControl "180+2"]
[EndTime "13:32:22 PDT"]
[Termination "peteseeger won by resignation"]

1. Nf3 {[%clk 0:03:01.9]} 1... g6 {[%clk 0:02:53.9]} 2. d4 {[%clk 0:03:01]} 2...
Bg7 {[%clk 0:02:54.4]} 3. c4 {[%clk 0:03:00.7]} 3... d6 {[%clk 0:02:55.2]} 4.
Nc3 {[%clk 0:03:00.2]} 4... e5 {[%clk 0:02:55.8]} 5. dxe5 {[%clk 0:02:58.6]}
5... dxe5 {[%clk 0:02:56.4]} 6. Qxd8+ {[%clk 0:02:59.1]} 6... Kxd8 {[%clk
0:02:57.2]} 7. Bg5+ {[%clk 0:03:00]} 7... f6 {[%clk 0:02:57.4]} 8. O-O-O+ {[%clk
0:03:00.7]} 8... Ke8 {[%clk 0:02:58.1]} 9. Be3 {[%clk 0:02:59.4]} 9... Be6
{[%clk 0:02:58.7]} 10. b3 {[%clk 0:02:59.7]} 10... c6 {[%clk 0:02:54]} 11. g3
{[%clk 0:02:56.9]} 11... Nh6 {[%clk 0:02:50.8]} 12. Bc5 {[%clk 0:02:48.1]} 12...
Na6 {[%clk 0:02:46.8]} 13. Ba3 {[%clk 0:02:39.4]} 13... Ng4 {[%clk 0:02:32.9]}
14. Ne4 {[%clk 0:02:40.3]} 14... Bf8 {[%clk 0:01:59.1]} 15. h3 {[%clk
0:02:36.7]} 15... Bxa3+ {[%clk 0:01:57.2]} 16. Kb1 {[%clk 0:02:36.2]} 16... Bf5
{[%clk 0:01:54.6]} 17. Nd2 {[%clk 0:02:30.8]} 17... Nxf2 {[%clk 0:01:52.9]} 0-1

[Event "*** MasterClass Titled Tuesday Blitz"]
[Site "Chess.com"]
[Date "2017.08.01"]
[Round "3"]
[White "PulpanJ"]
[Black "toad"]
[Result "0-1"]
[WhiteElo "2073"]
[BlackElo "2098"]
[TimeControl "180+2"]
[EndTime "13:33:30 PDT"]
[Termination "toad won by resignation"]

1. e4 {[%clk 0:03:01.9]} 1... c5 {[%clk 0:03:00.8]} 2. Nf3 {[%clk 0:03:02.7]}
2... d6 {[%clk 0:03:02.4]} 3. d4 {[%clk 0:03:03]} 3... cxd4 {[%clk 0:03:04.3]}
4. Nxd4 {[%clk 0:03:04.7]} 4... Nf6 {[%clk 0:03:05.9]} 5. Nc3 {[%clk 0:03:06.4]}
5... a6 {[%clk 0:03:07.3]} 6. Nb3 {[%clk 0:03:08.1]} 6... e6 {[%clk 0:03:06.6]}
7. g4 {[%clk 0:03:08.9]} 7... h6 {[%clk 0:03:05.8]} 8. Bg2 {[%clk 0:03:08.6]}
8... Nbd7 {[%clk 0:03:04.8]} 9. h4 {[%clk 0:03:09.4]} 9... Qc7 {[%clk
0:02:56.7]} 10. Be3 {[%clk 0:03:06.8]} 10... b5 {[%clk 0:02:52.1]} 11. e5 {[%clk
0:02:55.9]} 11... Bb7 {[%clk 0:02:52.9]} 12. exd6 {[%clk 0:02:44.1]} 12... Bxd6
{[%clk 0:02:48.8]} 13. Bxb7 {[%clk 0:02:44.8]} 13... Qxb7 {[%clk 0:02:49.9]} 14.
Rg1 {[%clk 0:02:46.7]} 14... Bh2 {[%clk 0:02:34.1]} 15. Rf1 {[%clk 0:02:45.6]}
15... Ne5 {[%clk 0:02:19]} 16. Nc5 {[%clk 0:02:28.1]} 16... Qg2 {[%clk 0:01:58]}
17. Qe2 {[%clk 0:01:54.1]} 17... Rd8 {[%clk 0:01:32.7]} 18. f4 {[%clk
0:01:49.7]} 18... Bg3+ {[%clk 0:01:33]} 19. Rf2 {[%clk 0:01:46.9]} 19... Nf3+
{[%clk 0:01:27.6]} 0-1

[Event "*** MasterClass Titled Tuesday Blitz"]
[Site "Chess.com"]
[Date "2017.08.01"]
[Round "3"]
[White "OldweakGM"]
[Black "SipkeErnst"]
[Result "0-1"]
[WhiteElo "2595"]
[BlackElo "2545"]
[TimeControl "180+2"]
[EndTime "13:34:27 PDT"]
[Termination "SipkeErnst won by resignation"]

1. Nf3 {[%clk 0:02:48.8]} 1... d5 {[%clk 0:02:53.1]} 2. d4 {[%clk 0:02:34.7]}
2... c6 {[%clk 0:02:53.6]} 3. Bf4 {[%clk 0:02:35.4]} 3... Bf5 {[%clk 0:02:51.3]}
4. e3 {[%clk 0:02:35.9]} 4... e6 {[%clk 0:02:51.3]} 5. c4 {[%clk 0:02:36.9]}
5... Nd7 {[%clk 0:02:50.3]} 6. Nc3 {[%clk 0:02:36.8]} 6... Ngf6 {[%clk
0:02:44.3]} 7. Qb3 {[%clk 0:02:27.3]} 7... Qb6 {[%clk 0:02:44.3]} 8. c5 {[%clk
0:02:28.5]} 8... Qxb3 {[%clk 0:02:45.5]} 9. axb3 {[%clk 0:02:30.4]} 9... a6
{[%clk 0:02:47.1]} 10. b4 {[%clk 0:02:31.5]} 10... Rc8 {[%clk 0:02:47.9]} 11. h3
{[%clk 0:02:32.9]} 11... Be7 {[%clk 0:02:47.2]} 12. Nd2 {[%clk 0:02:33.2]} 12...
Bd8 {[%clk 0:02:48.3]} 13. Nb3 {[%clk 0:02:34.5]} 13... Bc7 {[%clk 0:02:49.1]}
14. Na5 {[%clk 0:02:34.6]} 14... Bxf4 {[%clk 0:02:48.7]} 15. exf4 {[%clk
0:02:35.9]} 15... Rc7 {[%clk 0:02:50.2]} 16. f3 {[%clk 0:01:45.3]} 16... h6
{[%clk 0:02:50.4]} 17. Kd2 {[%clk 0:01:46.2]} 17... g5 {[%clk 0:02:50.8]} 18. g4
{[%clk 0:01:35.9]} 18... Bg6 {[%clk 0:02:47.2]} 19. b5 {[%clk 0:01:22.3]} 19...
cxb5 {[%clk 0:02:38.4]} 20. Bxb5 {[%clk 0:01:21.1]} 20... O-O {[%clk 0:02:32.9]}
21. fxg5 {[%clk 0:01:12.9]} 21... hxg5 {[%clk 0:02:33]} 22. Bxd7 {[%clk
0:01:08.8]} 22... Nxd7 {[%clk 0:02:33.3]} 23. b4 {[%clk 0:01:09.7]} 23... b6
{[%clk 0:02:10.7]} 24. Nb3 {[%clk 0:01:06.8]} 24... a5 {[%clk 0:02:12.1]} 25.
cxb6 {[%clk 0:00:48.7]} 25... Nxb6 {[%clk 0:02:12.9]} 26. Nxa5 {[%clk
0:00:50.3]} 26... Nc4+ {[%clk 0:02:12.9]} 27. Nxc4 {[%clk 0:00:44.7]} 27... Rxc4
{[%clk 0:02:14]} 0-1

[Event "*** MasterClass Titled Tuesday Blitz"]
[Site "Chess.com"]
[Date "2017.08.01"]
[Round "3"]
[White "Sharafiev_Azat"]
[Black "Caisachess"]
[Result "1-0"]
[WhiteElo "2288"]
[BlackElo "2249"]
[TimeControl "180+2"]
[EndTime "13:34:38 PDT"]
[Termination "Sharafiev_Azat won by resignation"]

1. Nf3 {[%clk 0:02:59.2]} 1... Nf6 {[%clk 0:02:59.8]} 2. c4 {[%clk 0:03:00.3]}
2... e6 {[%clk 0:03:00.6]} 3. g3 {[%clk 0:03:01.1]} 3... Be7 {[%clk 0:03:01.5]}
4. Bg2 {[%clk 0:03:01.3]} 4... O-O {[%clk 0:03:03]} 5. O-O {[%clk 0:03:03]} 5...
d5 {[%clk 0:03:04.1]} 6. d4 {[%clk 0:03:03.5]} 6... dxc4 {[%clk 0:03:04.9]} 7.
Qc2 {[%clk 0:03:03.9]} 7... a6 {[%clk 0:03:05.4]} 8. Rd1 {[%clk 0:03:01.3]} 8...
Bd7 {[%clk 0:02:54.8]} 9. Ne5 {[%clk 0:02:58.4]} 9... Bc6 {[%clk 0:02:55]} 10.
e4 {[%clk 0:02:51.1]} 10... b5 {[%clk 0:02:49]} 11. b3 {[%clk 0:02:44.5]} 11...
Bb7 {[%clk 0:02:37.9]} 12. bxc4 {[%clk 0:02:44.1]} 12... Nbd7 {[%clk 0:02:28.9]}
13. cxb5 {[%clk 0:02:41.3]} 13... axb5 {[%clk 0:02:27.5]} 14. Nc6 {[%clk
0:02:42.3]} 14... Bxc6 {[%clk 0:02:22]} 15. Qxc6 {[%clk 0:02:44.2]} 15... b4
{[%clk 0:02:16.4]} 16. Nd2 {[%clk 0:02:30.7]} 16... Nb6 {[%clk 0:02:10.8]} 17.
Nb3 {[%clk 0:02:27.6]} 17... Qd7 {[%clk 0:02:09.4]} 18. Qc2 {[%clk 0:02:23.3]}
18... Qb5 {[%clk 0:02:04.9]} 19. Qxc7 {[%clk 0:02:17.3]} 19... Rfe8 {[%clk
0:01:56.3]} 20. Bf4 {[%clk 0:01:56.4]} 20... Rac8 {[%clk 0:01:49.3]} 21. Qb7
{[%clk 0:01:52.4]} 21... Ra8 {[%clk 0:01:06.2]} 22. Bf1 {[%clk 0:01:45.8]} 1-0

[Event "*** MasterClass Titled Tuesday Blitz"]
[Site "Chess.com"]
[Date "2017.08.01"]
[Round "3"]
[White "politeplayer"]
[Black "abubakrtagelsir"]
[Result "0-1"]
[WhiteElo "2208"]
[BlackElo "2300"]
[TimeControl "180+2"]
[EndTime "13:35:28 PDT"]
[Termination "abubakrtagelsir won by resignation"]

1. e4 {[%clk 0:03:01.9]} 1... d6 {[%clk 0:02:58.4]} 2. d4 {[%clk 0:02:56.7]}
2... Nf6 {[%clk 0:02:59.3]} 3. Nc3 {[%clk 0:02:56.9]} 3... g6 {[%clk 0:02:59.3]}
4. f4 {[%clk 0:02:56.9]} 4... Bg7 {[%clk 0:02:59.2]} 5. Nf3 {[%clk 0:02:57.1]}
5... c5 {[%clk 0:02:59.7]} 6. dxc5 {[%clk 0:02:42.9]} 6... Qa5 {[%clk
0:02:58.8]} 7. Qd4 {[%clk 0:02:43.9]} 7... O-O {[%clk 0:02:54.2]} 8. b4 {[%clk
0:02:23.7]} 8... Qd8 {[%clk 0:02:36]} 9. e5 {[%clk 0:01:43.1]} 9... Nc6 {[%clk
0:02:32.9]} 10. Qd2 {[%clk 0:01:30.1]} 10... dxe5 {[%clk 0:02:26.5]} 11. fxe5
{[%clk 0:01:30.9]} 11... Ng4 {[%clk 0:02:24.5]} 12. Qxd8 {[%clk 0:01:19]} 12...
Rxd8 {[%clk 0:02:23.4]} 13. a3 {[%clk 0:01:05.2]} 13... Ngxe5 {[%clk 0:02:12.3]}
14. Nxe5 {[%clk 0:01:04.7]} 14... Bxe5 {[%clk 0:01:57.4]} 15. Bd2 {[%clk
0:01:04.7]} 15... Bg4 {[%clk 0:01:54.9]} 16. Bd3 {[%clk 0:00:53.4]} 16... Nd4
{[%clk 0:01:40.8]} 17. Rc1 {[%clk 0:00:17.6]} 17... Nb3 {[%clk 0:01:36.4]} 18.
cxb3 {[%clk 0:00:16.2]} 18... Rxd3 {[%clk 0:01:36.3]} 19. Rc2 {[%clk 0:00:15.1]}
19... Rad8 {[%clk 0:01:35]} 20. Ne4 {[%clk 0:00:14.8]} 20... Bf5 {[%clk
0:01:28.9]} 21. Nf2 {[%clk 0:00:13.6]} 21... Rxd2 {[%clk 0:01:27.7]} 22. Rxd2
{[%clk 0:00:14.5]} 22... Bc3 {[%clk 0:01:28.4]} 23. O-O {[%clk 0:00:15.1]} 0-1

[Event "*** MasterClass Titled Tuesday Blitz"]
[Site "Chess.com"]
[Date "2017.08.01"]
[Round "3"]
[White "ka1ser64"]
[Black "joppie2"]
[Result "0-1"]
[WhiteElo "2363"]
[BlackElo "2609"]
[TimeControl "180+2"]
[EndTime "13:35:30 PDT"]
[Termination "joppie2 won by resignation"]

1. d4 {[%clk 0:03:01.9]} 1... d5 {[%clk 0:02:55.8]} 2. c4 {[%clk 0:03:02.8]}
2... c6 {[%clk 0:02:55.2]} 3. Nf3 {[%clk 0:03:04.1]} 3... Nf6 {[%clk 0:02:55.8]}
4. Nc3 {[%clk 0:03:05.5]} 4... dxc4 {[%clk 0:02:51.8]} 5. a4 {[%clk 0:03:06.6]}
5... e6 {[%clk 0:02:52.2]} 6. e3 {[%clk 0:03:08]} 6... c5 {[%clk 0:02:53.5]} 7.
Bxc4 {[%clk 0:03:09.2]} 7... Nc6 {[%clk 0:02:55.2]} 8. O-O {[%clk 0:03:09.3]}
8... Be7 {[%clk 0:02:56.9]} 9. Re1 {[%clk 0:03:07.5]} 9... O-O {[%clk
0:02:57.7]} 10. b3 {[%clk 0:02:50.1]} 10... cxd4 {[%clk 0:02:56.4]} 11. exd4
{[%clk 0:02:51.4]} 11... Bb4 {[%clk 0:02:58.3]} 12. Bb2 {[%clk 0:02:51.5]} 12...
Bxc3 {[%clk 0:03:00]} 13. Bxc3 {[%clk 0:02:52.3]} 13... Nd5 {[%clk 0:03:01.9]}
14. Bd2 {[%clk 0:02:52.9]} 14... b6 {[%clk 0:03:00.2]} 15. Qe2 {[%clk
0:02:53.7]} 15... Bb7 {[%clk 0:03:01]} 16. Qe4 {[%clk 0:02:50.8]} 16... Nce7
{[%clk 0:02:45.9]} 17. Qg4 {[%clk 0:02:49.5]} 17... Nf6 {[%clk 0:02:45.2]} 18.
Qg3 {[%clk 0:02:46.7]} 18... Nf5 {[%clk 0:02:44.9]} 19. Qh3 {[%clk 0:02:40.9]}
19... Bxf3 {[%clk 0:02:45.6]} 20. Qxf3 {[%clk 0:02:41.3]} 20... Nxd4 {[%clk
0:02:46.9]} 21. Qc3 {[%clk 0:02:39.6]} 21... Nf5 {[%clk 0:02:45.7]} 22. Rxe6
{[%clk 0:02:38.7]} 22... fxe6 {[%clk 0:02:38.5]} 23. Bxe6+ {[%clk 0:02:39.8]}
23... Kh8 {[%clk 0:02:39.1]} 24. Bxf5 {[%clk 0:02:40.9]} 24... Nd5 {[%clk
0:02:34.7]} 25. Qe5 {[%clk 0:02:41.7]} 25... Qf6 {[%clk 0:02:32.8]} 26. Qxf6
{[%clk 0:02:41.1]} 26... Nxf6 {[%clk 0:02:34.7]} 27. a5 {[%clk 0:02:39]} 27...
Rad8 {[%clk 0:02:32.8]} 28. Be3 {[%clk 0:02:39.8]} 28... Nd5 {[%clk 0:02:32.6]}
29. Bg5 {[%clk 0:02:24.9]} 29... Rde8 {[%clk 0:02:21.3]} 30. Bd7 {[%clk
0:02:17.4]} 30... Re5 {[%clk 0:02:22.3]} 31. Bh4 {[%clk 0:02:12.4]} 31... bxa5
{[%clk 0:02:15.7]} 32. Bg3 {[%clk 0:02:10.1]} 32... Nf4 {[%clk 0:02:15.7]} 33.
Kf1 {[%clk 0:02:04.1]} 33... g5 {[%clk 0:02:13.3]} 34. h4 {[%clk 0:02:00.2]}
34... Rd5 {[%clk 0:02:10.5]} 35. Bg4 {[%clk 0:01:58.6]} 35... h6 {[%clk
0:02:03.4]} 36. hxg5 {[%clk 0:01:59.8]} 36... hxg5 {[%clk 0:02:05.3]} 37. Rc1
{[%clk 0:01:54.2]} 37... Rd3 {[%clk 0:01:57.8]} 38. Bxf4 {[%clk 0:01:41.1]}
38... Rxf4 {[%clk 0:01:57]} 39. Be6 {[%clk 0:01:42.1]} 39... a4 {[%clk
0:01:50.1]} 40. bxa4 {[%clk 0:01:42]} 40... Rxa4 {[%clk 0:01:52]} 41. Rc2 {[%clk
0:01:39.4]} 41... Re4 {[%clk 0:01:46.4]} 42. Rc8+ {[%clk 0:01:23.9]} 42... Kg7
{[%clk 0:01:45.2]} 0-1

[Event "*** MasterClass Titled Tuesday Blitz"]
[Site "Chess.com"]
[Date "2017.08.01"]
[Round "3"]
[White "B-man"]
[Black "wonderfultime"]
[Result "0-1"]
[WhiteElo "2378"]
[BlackElo "2659"]
[TimeControl "180+2"]
[EndTime "13:35:31 PDT"]
[Termination "wonderfultime won on time"]

1. d4 {[%clk 0:01:58.8]} 1... d5 {[%clk 0:02:59.1]} 2. Nf3 {[%clk 0:01:58.3]}
2... Nf6 {[%clk 0:03:00]} 3. Bf4 {[%clk 0:01:56.2]} 3... e6 {[%clk 0:03:00.8]}
4. h3 {[%clk 0:01:53.2]} 4... c5 {[%clk 0:03:01.8]} 5. c3 {[%clk 0:01:53.1]}
5... Bd6 {[%clk 0:03:02.9]} 6. Bxd6 {[%clk 0:01:42.4]} 6... Qxd6 {[%clk
0:03:04.8]} 7. Nbd2 {[%clk 0:01:39.8]} 7... Nc6 {[%clk 0:03:05.4]} 8. e3 {[%clk
0:01:40.7]} 8... O-O {[%clk 0:03:05.9]} 9. Bb5 {[%clk 0:01:40.3]} 9... Bd7
{[%clk 0:03:04.6]} 10. Bxc6 {[%clk 0:01:32]} 10... Bxc6 {[%clk 0:03:01.8]} 11.
O-O {[%clk 0:01:33]} 11... h6 {[%clk 0:03:01.1]} 12. Ne5 {[%clk 0:01:32.9]}
12... Bb5 {[%clk 0:02:57.5]} 13. Re1 {[%clk 0:01:31.9]} 13... Ba6 {[%clk
0:02:53.5]} 14. f4 {[%clk 0:01:31.3]} 14... Rab8 {[%clk 0:02:54.4]} 15. a4
{[%clk 0:01:20.1]} 15... b6 {[%clk 0:02:33.5]} 16. g4 {[%clk 0:01:06.2]} 16...
Ne8 {[%clk 0:02:27.1]} 17. g5 {[%clk 0:01:03.8]} 17... f6 {[%clk 0:02:19.8]} 18.
Ng6 {[%clk 0:00:59.8]} 18... Rf7 {[%clk 0:02:18.5]} 19. gxh6 {[%clk 0:00:52.6]}
19... gxh6 {[%clk 0:02:20.4]} 20. Qh5 {[%clk 0:00:50]} 20... Kh7 {[%clk
0:02:08.5]} 21. Kh2 {[%clk 0:00:44]} 21... Ng7 {[%clk 0:02:07.1]} 22. Qg4 {[%clk
0:00:33.9]} 22... Rg8 {[%clk 0:01:58.1]} 23. Rg1 {[%clk 0:00:30.4]} 23... Nf5
{[%clk 0:01:56.5]} 24. Qh5 {[%clk 0:00:10.5]} 24... Rfg7 {[%clk 0:01:51.5]} 25.
Nh4 {[%clk 0:00:06.2]} 25... Nxe3 {[%clk 0:01:52.4]} 0-1

[Event "*** MasterClass Titled Tuesday Blitz"]
[Site "Chess.com"]
[Date "2017.08.01"]
[Round "3"]
[White "Cryptochess"]
[Black "pedromartinez91"]
[Result "0-1"]
[WhiteElo "2460"]
[BlackElo "2330"]
[TimeControl "180+2"]
[EndTime "13:35:32 PDT"]
[Termination "pedromartinez91 won by resignation"]

1. e4 {[%clk 0:02:54.5]} 1... c5 {[%clk 0:02:28.5]} 2. Nc3 {[%clk 0:02:54.7]}
2... Nc6 {[%clk 0:02:29]} 3. g3 {[%clk 0:02:55.8]} 3... g6 {[%clk 0:02:29.9]} 4.
Bg2 {[%clk 0:02:56]} 4... d6 {[%clk 0:02:31.3]} 5. d3 {[%clk 0:02:55.1]} 5...
Bg7 {[%clk 0:02:32.5]} 6. Be3 {[%clk 0:02:53.1]} 6... e5 {[%clk 0:02:33.3]} 7.
Qd2 {[%clk 0:02:51.5]} 7... Nge7 {[%clk 0:02:34]} 8. Nge2 {[%clk 0:02:46.2]}
8... Nd4 {[%clk 0:02:28.5]} 9. O-O {[%clk 0:02:45.6]} 9... O-O {[%clk
0:02:09.9]} 10. f4 {[%clk 0:02:32.9]} 10... exf4 {[%clk 0:02:10]} 11. Nxf4
{[%clk 0:02:18.2]} 11... Nec6 {[%clk 0:02:10.4]} 12. Ncd5 {[%clk 0:02:18.6]}
12... Ne6 {[%clk 0:02:07.1]} 13. c3 {[%clk 0:02:18.8]} 13... Nxf4 {[%clk
0:02:07.3]} 14. Bxf4 {[%clk 0:02:17.6]} 14... Be6 {[%clk 0:02:04.9]} 15. Bg5
{[%clk 0:02:17.8]} 15... f6 {[%clk 0:01:56.9]} 16. Bh6 {[%clk 0:02:17.3]} 16...
Ne7 {[%clk 0:01:43.3]} 17. Bxg7 {[%clk 0:02:17.1]} 17... Kxg7 {[%clk 0:01:43.1]}
18. Nf4 {[%clk 0:02:18]} 18... Bf7 {[%clk 0:01:43.5]} 19. d4 {[%clk 0:02:17]}
19... Qc7 {[%clk 0:01:35.2]} 20. Rae1 {[%clk 0:02:14.1]} 20... Rad8 {[%clk
0:01:34.5]} 21. g4 {[%clk 0:02:14.9]} 21... Bg8 {[%clk 0:01:22.7]} 22. h4 {[%clk
0:02:14.9]} 22... Nc6 {[%clk 0:01:17.1]} 23. g5 {[%clk 0:02:14]} 23... cxd4
{[%clk 0:01:14.2]} 24. cxd4 {[%clk 0:02:13.4]} 24... Qb6 {[%clk 0:01:12.9]} 25.
h5 {[%clk 0:02:10.7]} 25... fxg5 {[%clk 0:01:04.8]} 26. Ne2 {[%clk 0:02:11.3]}
26... Bc4 {[%clk 0:00:55]} 27. hxg6 {[%clk 0:02:07.9]} 27... Bxe2 {[%clk
0:00:55.2]} 28. Qxe2 {[%clk 0:01:59.6]} 28... Qxd4+ {[%clk 0:00:54.8]} 29. Kh1
{[%clk 0:02:00.4]} 29... hxg6 {[%clk 0:00:54.8]} 30. Bh3 {[%clk 0:01:55.1]}
30... Ne5 {[%clk 0:00:51.6]} 31. Kg2 {[%clk 0:01:52.1]} 31... Rf4 {[%clk
0:00:48.9]} 32. Be6 {[%clk 0:01:50.9]} 32... Rdf8 {[%clk 0:00:47.4]} 33. Rxf4
{[%clk 0:01:47.2]} 33... gxf4 {[%clk 0:00:47.7]} 34. Qf2 {[%clk 0:01:48.3]}
34... Qxf2+ {[%clk 0:00:43.6]} 0-1

[Event "*** MasterClass Titled Tuesday Blitz"]
[Site "Chess.com"]
[Date "2017.08.01"]
[Round "3"]
[White "Fandorine"]
[Black "backreg"]
[Result "1-0"]
[WhiteElo "2657"]
[BlackElo "2386"]
[TimeControl "180+2"]
[EndTime "13:35:42 PDT"]
[Termination "Fandorine won by resignation"]

1. e4 {[%clk 0:03:01.9]} 1... c5 {[%clk 0:03:00.9]} 2. Nf3 {[%clk 0:02:59.5]}
2... e6 {[%clk 0:03:01.8]} 3. g3 {[%clk 0:02:57]} 3... Nc6 {[%clk 0:03:01.9]} 4.
Bg2 {[%clk 0:02:50.9]} 4... h5 {[%clk 0:03:02.9]} 5. h3 {[%clk 0:02:47.2]} 5...
d6 {[%clk 0:02:57.7]} 6. O-O {[%clk 0:02:44.7]} 6... Be7 {[%clk 0:02:56.1]} 7.
c3 {[%clk 0:02:43.5]} 7... h4 {[%clk 0:02:37.4]} 8. g4 {[%clk 0:02:43.6]} 8...
e5 {[%clk 0:02:28.9]} 9. d4 {[%clk 0:02:42.5]} 9... g5 {[%clk 0:02:15.4]} 10.
Na3 {[%clk 0:02:33.4]} 10... cxd4 {[%clk 0:01:56.7]} 11. cxd4 {[%clk 0:02:33.5]}
11... a6 {[%clk 0:01:25.1]} 12. Nc4 {[%clk 0:02:20.1]} 12... b5 {[%clk
0:01:25.7]} 13. Ne3 {[%clk 0:02:21.5]} 13... Nh6 {[%clk 0:01:18.9]} 14. a4
{[%clk 0:02:11]} 14... Bb7 {[%clk 0:01:05.4]} 15. axb5 {[%clk 0:02:04.8]} 15...
axb5 {[%clk 0:01:06.3]} 16. Rxa8 {[%clk 0:02:06.1]} 16... Bxa8 {[%clk
0:01:07.3]} 17. Nd5 {[%clk 0:02:01.1]} 17... Nxd4 {[%clk 0:00:51.4]} 18. Nxd4
{[%clk 0:02:01.7]} 18... Bxd5 {[%clk 0:00:51.8]} 19. exd5 {[%clk 0:02:03.3]}
19... exd4 {[%clk 0:00:52.6]} 20. Qxd4 {[%clk 0:02:02.4]} 20... O-O {[%clk
0:00:51.9]} 21. f4 {[%clk 0:02:04]} 21... Bf6 {[%clk 0:00:47.8]} 22. Qd2 {[%clk
0:02:01.1]} 22... gxf4 {[%clk 0:00:28.8]} 23. Qxf4 {[%clk 0:02:01]} 23... Bg7
{[%clk 0:00:25.2]} 24. g5 {[%clk 0:02:02.2]} 24... Be5 {[%clk 0:00:23.2]} 25.
Qxh4 {[%clk 0:02:02.6]} 25... Qb6+ {[%clk 0:00:23.9]} 26. Kh1 {[%clk 0:02:02.8]}
26... Nf5 {[%clk 0:00:22]} 27. Rxf5 {[%clk 0:02:02.5]} 27... Rc8 {[%clk
0:00:23.6]} 28. Rf1 {[%clk 0:02:01.9]} 28... Rc2 {[%clk 0:00:20.9]} 29. g6
{[%clk 0:01:54.4]} 29... fxg6 {[%clk 0:00:21.8]} 30. Qe4 {[%clk 0:01:55.1]}
30... Qc5 {[%clk 0:00:16.2]} 31. Qxg6+ {[%clk 0:01:55.7]} 31... Bg7 {[%clk
0:00:17.3]} 32. Bh6 {[%clk 0:01:51.2]} 1-0

[Event "*** MasterClass Titled Tuesday Blitz"]
[Site "Chess.com"]
[Date "2017.08.01"]
[Round "3"]
[White "jcibarra"]
[Black "Incognito_Knight"]
[Result "1-0"]
[WhiteElo "2649"]
[BlackElo "2363"]
[TimeControl "180+2"]
[EndTime "13:36:03 PDT"]
[Termination "jcibarra won by resignation"]

1. e4 {[%clk 0:03:01.9]} 1... c5 {[%clk 0:02:57.5]} 2. Nf3 {[%clk 0:03:02.7]}
2... e6 {[%clk 0:02:58.6]} 3. d4 {[%clk 0:03:04]} 3... cxd4 {[%clk 0:03:00.5]}
4. Nxd4 {[%clk 0:03:05.7]} 4... a6 {[%clk 0:03:02.1]} 5. c4 {[%clk 0:03:07]}
5... Nf6 {[%clk 0:03:02.1]} 6. Nc3 {[%clk 0:03:07.8]} 6... Qc7 {[%clk
0:03:03.5]} 7. a3 {[%clk 0:03:08.5]} 7... Nc6 {[%clk 0:03:04.9]} 8. Be3 {[%clk
0:03:09.3]} 8... Bd6 {[%clk 0:02:53.2]} 9. Ndb5 {[%clk 0:03:05.6]} 9... axb5
{[%clk 0:02:54]} 10. Nxb5 {[%clk 0:03:07.5]} 10... Qa5+ {[%clk 0:02:55.4]} 11.
Bd2 {[%clk 0:03:01.8]} 11... Bb4 {[%clk 0:02:56.2]} 12. axb4 {[%clk 0:02:02.3]}
12... Qxa1 {[%clk 0:02:55.2]} 13. Nc7+ {[%clk 0:02:03]} 13... Kd8 {[%clk
0:02:47.6]} 14. Nxa8 {[%clk 0:02:04.9]} 14... Qxa8 {[%clk 0:02:48.2]} 15. b5
{[%clk 0:02:05.2]} 15... Ne7 {[%clk 0:02:21.9]} 16. Bd3 {[%clk 0:01:56.6]} 16...
e5 {[%clk 0:02:11.6]} 17. O-O {[%clk 0:01:55.6]} 17... Re8 {[%clk 0:02:08.2]}
18. Bb4 {[%clk 0:01:55.2]} 18... Ng6 {[%clk 0:02:04.7]} 19. g3 {[%clk
0:01:52.3]} 19... Qa7 {[%clk 0:01:52.5]} 20. c5 {[%clk 0:01:38.4]} 20... Nf8
{[%clk 0:01:45.1]} 21. b6 {[%clk 0:01:27.7]} 21... Qa8 {[%clk 0:01:34.2]} 22.
Bb5 {[%clk 0:01:22.3]} 22... Ne6 {[%clk 0:01:08]} 23. Qd6 {[%clk 0:01:10.5]}
23... Nxe4 {[%clk 0:00:46.8]} 24. Qxe5 {[%clk 0:01:11]} 24... N4g5 {[%clk
0:00:48]} 25. Qd5 {[%clk 0:01:08.4]} 25... Qb8 {[%clk 0:00:33.2]} 26. h4 {[%clk
0:01:05.9]} 26... Nf4 {[%clk 0:00:26.5]} 27. Qxg5+ {[%clk 0:01:05.6]} 1-0

[Event "*** MasterClass Titled Tuesday Blitz"]
[Site "Chess.com"]
[Date "2017.08.01"]
[Round "3"]
[White "Keranke"]
[Black "rubhani"]
[Result "0-1"]
[WhiteElo "2635"]
[BlackElo "2393"]
[TimeControl "180+2"]
[EndTime "13:36:04 PDT"]
[Termination "rubhani won by resignation"]

1. d4 {[%clk 0:03:01.9]} 1... Nf6 {[%clk 0:02:59.3]} 2. Nf3 {[%clk 0:03:01.2]}
2... e6 {[%clk 0:02:59]} 3. Bf4 {[%clk 0:03:02.5]} 3... d5 {[%clk 0:02:56.3]} 4.
e3 {[%clk 0:03:03.7]} 4... Bd6 {[%clk 0:02:54.6]} 5. Ne5 {[%clk 0:03:04.8]} 5...
O-O {[%clk 0:02:55.1]} 6. Nd2 {[%clk 0:03:06.2]} 6... c5 {[%clk 0:02:29.5]} 7.
c3 {[%clk 0:03:04.9]} 7... Nc6 {[%clk 0:02:29.8]} 8. Bd3 {[%clk 0:03:05.6]} 8...
Qc7 {[%clk 0:02:12.3]} 9. Ndf3 {[%clk 0:03:06.1]} 9... h6 {[%clk 0:01:51.1]} 10.
g4 {[%clk 0:02:56.7]} 10... Nd7 {[%clk 0:01:50.2]} 11. Nxd7 {[%clk 0:02:45.8]}
11... Bxd7 {[%clk 0:01:47.9]} 12. Bxd6 {[%clk 0:02:47.4]} 12... Qxd6 {[%clk
0:01:48.8]} 13. g5 {[%clk 0:02:47.2]} 13... h5 {[%clk 0:00:56.8]} 14. g6 {[%clk
0:02:42.9]} 14... fxg6 {[%clk 0:00:55.4]} 15. Bxg6 {[%clk 0:02:32.4]} 15... e5
{[%clk 0:00:33.2]} 16. Bxh5 {[%clk 0:02:18]} 16... cxd4 {[%clk 0:00:32.5]} 17.
cxd4 {[%clk 0:02:09.5]} 17... e4 {[%clk 0:00:33.1]} 18. Nd2 {[%clk 0:01:57.6]}
18... Qf6 {[%clk 0:00:23.6]} 19. Qe2 {[%clk 0:01:40.2]} 19... Nb4 {[%clk
0:00:21.4]} 20. O-O-O {[%clk 0:01:37.7]} 20... Nd3+ {[%clk 0:00:19.9]} 21. Kb1
{[%clk 0:01:39.1]} 21... Qxf2 {[%clk 0:00:20.9]} 22. Rhf1 {[%clk 0:01:31.9]}
22... Qh4 {[%clk 0:00:21.8]} 23. Nb3 {[%clk 0:01:23.5]} 23... Bh3 {[%clk
0:00:21.7]} 24. Rxf8+ {[%clk 0:01:19.3]} 24... Rxf8 {[%clk 0:00:23.6]} 25. Rg1
{[%clk 0:01:06.7]} 25... Rf2 {[%clk 0:00:23.9]} 26. Qd1 {[%clk 0:01:08]} 26...
Rxb2+ {[%clk 0:00:24.7]} 27. Ka1 {[%clk 0:01:09.6]} 27... Qf2 {[%clk 0:00:25.8]}
28. Nc1 {[%clk 0:00:59.9]} 28... Rxa2+ {[%clk 0:00:26.2]} 0-1